fUST/lending_fUST_20260206
["ID","MTS","AMOUNT","RATE_DAILY","PERIOD"]
[404614996,1770329442384,-151.0,0.00039662,120]
[404614997,1770329442399,-151.0,0.00039662,120]
[404614998,1770329442409,-151.0,0.00039662,120]
[404614999,1770329442418,-223.928741,0.00039662,120]
[404615000,1770329442428,-151.0,0.00039662,120]
[404615001,1770329442438,-151.0,0.00039662,120]
[404615002,1770329442447,-151.0,0.00039662,120]
[404615003,1770329442458,-151.0,0.00039662,120]
[404615004,1770329442467,-151.0,0.00039662,120]
[404615005,1770329442477,-151.0,0.00039662,120]
[404615006,1770329442487,-151.0,0.00039662,120]
[404615007,1770329442496,-151.0,0.00039662,120]
[404615008,1770329442506,-151.0,0.00039662,120]
[404615009,1770329442515,-232.646004,0.00039662,120]
[404615010,1770329442524,-151.0,0.00039662,120]
[404615011,1770329442534,-151.0,0.00039662,120]
[404615012,1770329442543,-151.0,0.00039662,120]
[404615013,1770329442553,-151.0,0.00039662,120]
[404615014,1770329442562,-151.0,0.00039662,120]
[404615015,1770329442572,-235.098838,0.00039662,120]
[404615016,1770329442581,-151.0,0.00039662,120]
[404615017,1770329442590,-151.0,0.00039662,120]
[404615018,1770329442599,-151.0,0.00039662,120]
[404615019,1770329442608,-151.0,0.00039662,120]
[404615020,1770329442617,-151.0,0.00039662,120]
[404615021,1770329442627,-151.0,0.00039662,120]
[404615022,1770329442639,-153.759184,0.00039662,120]
[404615023,1770329442648,-151.0,0.00039662,120]
[404615024,1770329442658,-151.0,0.00039662,120]
[404615025,1770329442667,-199.884507,0.00039662,120]
[404615026,1770329442677,-156.163678,0.00039662,120]
[404615027,1770329442686,-151.0,0.00039662,120]
[404615028,1770329442695,-151.0,0.00039662,120]
[404615029,1770329442704,-151.0,0.00039662,120]
[404615030,1770329442713,-151.0,0.00039662,120]
[404615031,1770329442723,-151.0,0.00039662,120]
[404615032,1770329442732,-151.0,0.00039662,120]
[404615033,1770329442742,-151.0,0.00039662,120]
[404615034,1770329442751,-164.356059,0.00039662,120]
[404615035,1770329442761,-151.0,0.00039662,120]
[404615036,1770329442770,-162.143121,0.00039662,120]
[404615037,1770329442779,-1177.870771,0.00039662,120]
[404615038,1770329442788,-1177.870771,0.00039662,120]
[404615039,1770329442797,-1177.870771,0.00039662,120]
[404615040,1770329442807,-1177.870771,0.00039662,120]
[404615041,1770329442816,-1177.870771,0.00039662,120]
[404615042,1770329442826,-1177.870771,0.00039662,120]
[404615043,1770329442835,-247.181381,0.00039662,120]
[404615044,1770329442844,-1177.870771,0.00039662,120]
[404615045,1770329442853,-1177.870771,0.00039662,120]
[404615046,1770329442863,-151.0,0.00039662,120]
[404615047,1770329442873,-151.0,0.00039662,120]
[404615048,1770329442882,-249.080132,0.00039662,120]
[404615049,1770329442896,-156.362279,0.00039662,120]
[404615050,1770329442905,-151.0,0.00039662,7]
[404615051,1770329442915,-151.0,0.00039662,7]
[404615052,1770329442924,-151.0,0.00039662,120]
[404615053,1770329442933,-151.0,0.00039662,7]
[404615054,1770329442943,-151.0,0.00039662,120]
[404615055,1770329442952,-200.868053,0.00039662,7]
[404615056,1770329442962,-357.386307,0.00039662,120]
[404615057,1770329442971,-357.386307,0.00039662,120]
[404615058,1770329442981,-357.386307,0.00039662,120]
[404615059,1770329442990,-357.386307,0.00039662,120]
[404615060,1770329442999,-357.386307,0.00039662,120]
[404615061,1770329443009,-357.386307,0.00039662,120]
[404615062,1770329443018,-357.386307,0.00039662,120]
[404615063,1770329443027,-357.386307,0.00039662,120]
[404615065,1770329443039,-385.137266,0.00039662,120]
[404615067,1770329443050,-385.137266,0.00039662,120]
[404615069,1770329443065,-385.137266,0.00039662,120]
[404615070,1770329443082,-385.137266,0.00039662,120]
[404615071,1770329443099,-151.0,0.00039662,120]
[404615072,1770329443112,-151.0,0.00039662,120]
[404615073,1770329443129,-385.137266,0.00039662,120]
[404615074,1770329443145,-385.137266,0.00039662,120]
[404615075,1770329443161,-151.0,0.00039662,120]
[404615076,1770329443176,-151.0,0.00039662,120]
[404615077,1770329443191,-385.137266,0.00039662,120]
[404615078,1770329443208,-385.137266,0.00039662,120]
[404615079,1770329443222,-274.9757,0.00039662,120]
[404615080,1770329443235,-276.956958,0.00039662,120]
[404615081,1770329443247,-276.956958,0.00039662,120]
[404615082,1770329443261,-276.956958,0.00039662,120]
[404615083,1770329443277,-276.956958,0.00039662,120]
[404615084,1770329443291,-276.956958,0.00039662,120]
[404615085,1770329443302,-276.956958,0.00039662,120]
[404615086,1770329443316,-276.956958,0.00039662,120]
[404615087,1770329443329,-276.956958,0.00039662,120]
[404615088,1770329443344,-320.582669,0.00039662,120]
[404615089,1770329443358,-320.582669,0.00039662,120]
[404615090,1770329443372,-320.582669,0.00039662,120]
[404615091,1770329443390,-320.582669,0.00039662,120]
[404615092,1770329443406,-320.582669,0.00039662,120]
[404615093,1770329443419,-320.582669,0.00039662,120]
[404615094,1770329443431,-320.582669,0.00039662,120]
[404615095,1770329443443,-320.582669,0.00039662,120]
[404615096,1770329443457,-252.945066,0.00039662,120]
[404615097,1770329443472,-151.0,0.00039662,120]
[404615098,1770329443486,-151.0,0.00039662,120]
[404615099,1770329443497,-497.77814,0.00039662,28]
[404615100,1770329443510,-497.77814,0.00039662,28]
[404615101,1770329443524,-497.77814,0.00039662,28]
[404615102,1770329443536,-497.77814,0.00039662,28]
[404615103,1770329443547,-497.77814,0.00039662,28]
[404615104,1770329443559,-497.77814,0.00039662,28]
[404615105,1770329443572,-497.77814,0.00039662,28]
[404615106,1770329443584,-497.77814,0.00039662,28]
[404615107,1770329443595,-151.0,0.00039662,120]
[404615108,1770329443607,-151.0,0.00039662,120]
[404615109,1770329443620,-194.834647,0.00039662,120]
[404615110,1770329443632,-194.834647,0.00039662,120]
[404615111,1770329443646,-194.834647,0.00039662,120]
[404615112,1770329443659,-194.834647,0.00039662,120]
[404615113,1770329443672,-194.834647,0.00039662,120]
[404615114,1770329443685,-194.834647,0.00039662,120]
[404615115,1770329443697,-194.834647,0.00039662,120]
[404615116,1770329443709,-194.834647,0.00039662,120]
[404615117,1770329443721,-164.814682,0.00039662,120]
[404615118,1770329443732,-164.814682,0.00039662,120]
[404615119,1770329443744,-235.79102,0.00039662,120]
[404615120,1770329443756,-235.79102,0.00039662,120]
[404615121,1770329443767,-164.814682,0.00039662,120]
[404615122,1770329443779,-164.814682,0.00039662,120]
[404615123,1770329443790,-235.79102,0.00039662,120]
[404615124,1770329443802,-235.79102,0.00039662,120]
[404615125,1770329443814,-164.814682,0.00039662,120]
[404615126,1770329443826,-164.814682,0.00039662,120]
[404615127,1770329443839,-235.79102,0.00039662,120]
[404615128,1770329443850,-235.79102,0.00039662,120]
[404615129,1770329443863,-417.791962,0.00039662,120]
[404615130,1770329443875,-417.791962,0.00039662,120]
[404615131,1770329443888,-164.814682,0.00039662,120]
[404615132,1770329443900,-235.79102,0.00039662,120]
[404615133,1770329443911,-164.814682,0.00039662,120]
[404615134,1770329443922,-235.79102,0.00039662,120]
[404615135,1770329443934,-417.791962,0.00039662,120]
[404615136,1770329443945,-417.791962,0.00039662,120]
[404615137,1770329443957,-417.791962,0.00039662,120]
[404615138,1770329443969,-417.791962,0.00039662,120]
[404615139,1770329443981,-417.791962,0.00039662,120]
[404615140,1770329443992,-417.791962,0.00039662,120]
[404615141,1770329444004,-279.3,0.00039662,120]
[404615142,1770329444015,-279.3,0.00039662,120]
[404615143,1770329444027,-279.3,0.00039662,120]
[404615144,1770329444038,-279.3,0.00039662,120]
[404615145,1770329444048,-279.3,0.00039662,120]
[404615146,1770329444059,-279.3,0.00039662,120]
[404615148,1770329444069,-279.3,0.00039662,120]
[404615149,1770329444078,-279.3,0.00039662,120]
[404615150,1770329444089,-1769.667582,0.00039662,120]
[404615151,1770329444100,-1769.667582,0.00039662,120]
[404615152,1770329444112,-151.0,0.00039662,120]
[404615153,1770329444126,-151.0,0.00039662,120]
[404615154,1770329444139,-1769.667582,0.00039662,120]
[404615155,1770329444150,-1769.667582,0.00039662,120]
[404615156,1770329444162,-1769.667582,0.00039662,120]
[404615157,1770329444173,-1769.667582,0.00039662,120]
[404615158,1770329444183,-1769.667582,0.00039662,120]
[404615159,1770329444192,-1769.667582,0.00039662,120]
[404615160,1770329444202,-305.337312,0.00039662,120]
[404615161,1770329444211,-305.337312,0.00039662,120]
[404615162,1770329444220,-305.337312,0.00039662,120]
[404615163,1770329444394,-188.491198,0.00039662,120]
[404615164,1770329444404,-305.337312,0.00039662,120]
[404615165,1770329444414,-188.491198,0.00039662,120]
[404615166,1770329444423,-305.337312,0.00039662,120]
[404615167,1770329444432,-188.491198,0.00039662,120]
[404615168,1770329444442,-305.337312,0.00039662,120]
[404615169,1770329444451,-188.491198,0.00039662,120]
[404615170,1770329444460,-305.337312,0.00039662,120]
[404615171,1770329444470,-305.337312,0.00039662,120]
[404615172,1770329444480,-188.491198,0.00039662,120]
[404615173,1770329444489,-188.491198,0.00039662,120]
[404615174,1770329444498,-188.491198,0.00039662,120]
[404615175,1770329444508,-188.491198,0.00039662,120]
[404615176,1770329444519,-169.155365,0.00039662,120]
[404615177,1770329444529,-398.973473,0.00039662,120]
[404615178,1770329444538,-151.0,0.00039662,120]
[404615179,1770329444548,-151.0,0.00039662,120]
[404615180,1770329444557,-398.973473,0.00039662,120]
[404615181,1770329444567,-151.0,0.00039662,120]
[404615182,1770329444577,-398.973473,0.00039662,120]
[404615183,1770329444586,-151.0,0.00039662,120]
[404615184,1770329444594,-398.973473,0.00039662,120]
[404615185,1770329444603,-398.973473,0.00039662,120]
[404615186,1770329444612,-398.973473,0.00039662,120]
[404615187,1770329444622,-398.973473,0.00039662,120]
[404615188,1770329444632,-398.973473,0.00039662,120]
[404615189,1770329444645,-151.0,0.00039662,120]
[404615190,1770329444654,-163.455454,0.00039662,120]
[404615191,1770329444663,-936.684455,0.00039662,120]
[404615192,1770329444673,-936.684455,0.00039662,120]
[404615193,1770329444683,-376.407107,0.00039662,120]
[404615194,1770329444692,-376.407107,0.00039662,120]
[404615195,1770329444701,-936.684455,0.00039662,120]
[404615196,1770329444710,-376.407107,0.00039662,120]
[404615197,1770329444720,-936.684455,0.00039662,120]
[404615198,1770329444729,-376.407107,0.00039662,120]
[404615199,1770329444739,-376.407107,0.00039662,120]
[404615200,1770329444748,-936.684455,0.00039662,120]
[404615201,1770329444758,-376.407107,0.00039662,120]
[404615202,1770329444767,-151.000096,0.00039662,120]
[404615203,1770329444777,-936.684455,0.00039662,120]
[404615204,1770329444787,-376.407107,0.00039662,120]
[404615205,1770329444796,-936.684455,0.00039662,120]
[404615206,1770329444806,-376.407107,0.00039662,120]
[404615207,1770329444816,-936.684455,0.00039662,120]
[404615208,1770329444826,-151.0,0.00039662,120]
[404615209,1770329444835,-151.0,0.00039662,120]
[404615210,1770329444845,-151.0,0.00039662,120]
[404615211,1770329444854,-151.0,0.00039662,120]
[404615212,1770329444864,-151.0,0.00039662,120]
[404615213,1770329444874,-151.0,0.00039662,120]
[404615214,1770329444883,-151.0,0.00039662,120]
[404615215,1770329444899,-151.0,0.00039662,120]
[404615216,1770329444909,-151.0,0.00039662,30]
[404615217,1770329444918,-151.0,0.00039662,30]
[404615218,1770329444927,-151.0,0.00039662,30]
[404615219,1770329444936,-151.0,0.00039662,30]
[404615220,1770329444946,-276.696447,0.00039662,30]
[404615221,1770329444956,-151.0,0.00039662,120]
[404615222,1770329444965,-151.0,0.00039662,120]
[404615223,1770329444974,-151.0,0.00039662,120]
[404615224,1770329444984,-151.0,0.00039662,120]
[404615225,1770329444993,-172.910056,0.00039662,120]
[404615226,1770329445003,-151.0,0.00039662,120]
[404615227,1770329445012,-172.910056,0.00039662,120]
[404615228,1770329445022,-151.0,0.00039662,120]
[404615229,1770329445032,-172.910056,0.00039662,120]
[404615230,1770329445042,-172.910056,0.00039662,120]
[404615231,1770329445051,-172.910056,0.00039662,120]
[404615232,1770329445061,-163.60395,0.00039662,120]
[404615233,1770329445070,-172.910056,0.00039662,120]
[404615234,1770329445080,-151.0,0.00039662,30]
[404615235,1770329445089,-151.0,0.00039662,30]
[404615236,1770329445099,-172.910056,0.00039662,120]
[404615237,1770329445108,-172.910056,0.00039662,120]
[404615238,1770329445118,-151.0,0.00039662,120]
[404615239,1770329445131,-151.0,0.00039662,120]
[404615240,1770329445146,-2665723.37403122,0.00039662,30]
[404615241,1770329445291,-6267.51897317,0.00039662,30]
[404615245,1770329446294,-2000.0,0.00037327,2]
[404615246,1770329446304,-2000.0,0.00037327,2]
[404615247,1770329446314,-2000.0,0.00037327,2]
[404615248,1770329446323,-2000.0,0.00037327,2]
[404615249,1770329446333,-209.40437684,0.00037944,2]
[404615250,1770329446343,-217.15233878,0.00037944,2]
[404615251,1770329446352,-225.18697532,0.00037944,2]
[404615252,1770329446361,-233.51889341,0.00037944,2]
[404615253,1770329446371,-178118.88500624,0.00039662,30]
[404615255,1770329446383,-3437.34253005,0.00039662,30]
[404615256,1770329446403,-254.01130894,0.00039662,30]
[404615257,1770329446415,-1263.4,0.00039662,30]
[404615264,1770329446880,-2000.0,0.00037327,2]
[404615265,1770329446892,-2000.0,0.00037327,2]
[404615266,1770329447020,-2000.0,0.00037327,2]
[404615267,1770329447030,-2000.0,0.00037327,2]
[404615268,1770329447040,-222.22,0.00037327,2]
[404615274,1770329447490,-1777.78,0.00037327,2]
[404615275,1770329447501,-2000.0,0.00037327,2]
[404615276,1770329447511,-2000.0,0.00037327,2]
[404615277,1770329447521,-2000.0,0.00037327,2]
[404615278,1770329447531,-242.15909246,0.00037944,2]
[404615279,1770329447540,-251.11897888,0.00037944,2]
[404615280,1770329447550,-260.4103811,0.00037944,2]
[404615281,1770329447559,-270.0455652,0.00037944,2]
[404615282,1770329447570,-280.03725112,0.00037944,2]
[404615283,1770329447579,-290.39862941,0.00037944,2]
[404615284,1770329447589,-301.1433787,0.00037944,2]
[404615285,1770329447598,-160.922844,0.00039662,120]
[404615286,1770329447607,-160.922844,0.00039662,120]
[404615287,1770329447617,-160.922844,0.00039662,120]
[404615288,1770329447626,-160.922844,0.00039662,120]
[404615289,1770329447635,-151.0,0.00039662,120]
[404615290,1770329447652,-151.0,0.00039662,120]
[404615291,1770329447662,-160.922844,0.00039662,120]
[404615292,1770329447671,-160.922844,0.00039662,120]
[404615293,1770329447682,-37215.28910959,0.00039662,30]
[404615297,1770329451148,-429.52205352,0.000301,7]
[404615298,1770329451157,-279.10003248,0.00039662,30]
[404615299,1770329451230,-4766.88,0.00039652,10]
[404615300,1770329451240,-160.922844,0.00039662,120]
[404615301,1770329451250,-160.922844,0.00039662,120]
[404615302,1770329451259,-4870.71529259,0.00039662,30]
[404615303,1770329451270,-20005.0155,0.00039662,30]
[404615304,1770329463659,500.0,0.00013699,2]
[404615305,1770329463715,209.53631024,0.00014247,2]
[404615312,1770329494635,641.72581753,0.00014027,2]
[404615313,1770329531610,500.0,0.00013699,2]
[404615314,1770329531662,1000.0,0.00014247,2]
[404615315,1770329531727,1500.0,0.00014795,2]
[404615318,1770329645523,215.67000002,0.00013699,2]
[404615319,1770329646570,304.73831557,0.00013699,2]
[404615320,1770329647879,5000.0,0.0001501,2]
[404615321,1770329652472,500.0,0.00013699,2]
[404615322,1770329652500,1000.0,0.00014247,2]
[404615323,1770329652538,202.16105981,0.00014795,2]
[404615324,1770329655902,5000.0,0.0001501,2]
[404615326,1770329670711,5000.0,0.0001501,2]
[404615327,1770329678415,5000.0,0.0001501,2]
[404615328,1770329693637,5000.0,0.0001501,2]
[404615329,1770329701759,3273.78363285,0.0001501,2]
[404615330,1770329703208,330.65,0.00013012,2]
[404615331,1770329716647,5000.0,0.0001501,2]
[404615333,1770329738346,5000.0,0.0001501,2]
[404615334,1770329760378,1511.76281218,0.0001501,2]
[404615335,1770329823193,361.45042765,0.00013699,2]
[404615336,1770329823925,500.0,0.00013699,2]
[404615337,1770329823983,1000.0,0.00014247,2]
[404615338,1770329824040,500.0,0.00014795,2]
[404615339,1770329838715,5000.0,0.0001501,2]
[404615341,1770329995072,1275.727,0.00030137,120]
[404615342,1770330002067,155.0,0.00013,2]
[404615343,1770330003221,154.99,0.00013011,2]
[404615345,1770330123025,234.23557593,0.00013699,2]
[404615355,1770330363446,301.54490954,0.00013699,2]
[404615356,1770330363497,500.0,0.00013699,2]
[404615357,1770330363560,173.18089913,0.00014247,2]
[404615363,1770330490224,947.50577192,0.000125,2]
[404615437,1770330632087,-629.12,0.00016374,2]
[404615438,1770330632129,-320.23,0.00016374,2]
[404615439,1770330632140,-295.09052318,0.00016374,2]
[404615454,1770330638345,-1945.171,0.00016374,2]
[404615455,1770330638357,-1810.38847682,0.00016374,2]
[404615456,1770330638366,-150.0,0.00016539,2]
[404615457,1770330638376,-235.0,0.00016999,2]
[404615458,1770330638387,-300.0,0.00016999,2]
[404615459,1770330638397,-1200.0,0.00016999,2]
[404615460,1770330638406,-14313.19169761,0.00017,2]
[404615461,1770330638416,-177.0,0.00018539,2]
[404615462,1770330638426,-303.10001606,0.000189,2]
[404615463,1770330638436,-204.0,0.00020539,2]
[404615464,1770330638446,-1722.424113,0.00021525,2]
[404615465,1770330638455,-1722.424113,0.00022431,2]
[404615466,1770330638469,-231.0,0.00022539,2]
[404615467,1770330638479,-1722.424113,0.00023337,2]
[404615468,1770330638488,-1722.424113,0.00024244,2]
[404615469,1770330638498,-500.0,0.00024649,2]
[404615470,1770330638514,-500.0,0.00024649,2]
[404615471,1770330638523,-500.0,0.00024649,2]
[404615472,1770330638533,-500.0,0.00024649,2]
[404615473,1770330638543,-500.0,0.00024649,2]
[404615474,1770330638554,-500.0,0.00024649,2]
[404615475,1770330638564,-625.78598474,0.00024649,2]
[404615476,1770330638575,-500.0,0.00024649,2]
[404615477,1770330638585,-500.0,0.00024649,2]
[404615478,1770330638595,-500.0,0.00024649,2]
[404615479,1770330638605,-500.0,0.00024649,2]
[404615480,1770330638615,-200.37213534,0.00024649,2]
[404615481,1770330638624,-500.0,0.00024649,2]
[404615482,1770330638634,-500.0,0.00024649,2]
[404615483,1770330638643,-500.0,0.00024649,2]
[404615484,1770330638654,-500.0,0.00024649,2]
[404615485,1770330638664,-500.0,0.00024649,2]
[404615486,1770330638673,-500.0,0.00024649,2]
[404615487,1770330638682,-500.0,0.00024649,2]
[404615488,1770330638692,-500.0,0.00024649,2]
[404615489,1770330638702,-500.0,0.00024649,2]
[404615490,1770330638712,-500.0,0.00024649,2]
[404615491,1770330638721,-500.0,0.00024649,2]
[404615492,1770330638731,-500.0,0.00024649,2]
[404615493,1770330638741,-500.0,0.00024649,2]
[404615494,1770330638751,-500.0,0.00024649,2]
[404615495,1770330638764,-500.0,0.00024649,2]
[404615496,1770330638774,-639.3934647,0.00024649,2]
[404615497,1770330638784,-500.0,0.00024649,2]
[404615498,1770330638794,-500.0,0.00024649,2]
[404615499,1770330638804,-500.0,0.00024649,2]
[404615500,1770330638813,-500.0,0.00024649,2]
[404615501,1770330638823,-500.0,0.00024649,2]
[404615502,1770330638833,-500.0,0.00024649,2]
[404615503,1770330638843,-500.0,0.00024649,2]
[404615504,1770330638853,-500.0,0.00024649,2]
[404615505,1770330638863,-500.0,0.00024649,2]
[404615506,1770330638873,-500.0,0.00024649,2]
[404615507,1770330638883,-500.0,0.00024649,2]
[404615508,1770330638894,-500.0,0.00024649,2]
[404615509,1770330638904,-500.0,0.00024649,2]
[404615510,1770330638913,-500.0,0.00024649,2]
[404615511,1770330638923,-500.0,0.00024649,2]
[404615512,1770330638933,-500.0,0.00024649,2]
[404615513,1770330638942,-500.0,0.00024649,2]
[404615514,1770330638951,-500.0,0.00024649,2]
[404615515,1770330638960,-30361.58497973,0.0002465,2]
[404615516,1770330638969,-1722.424113,0.0002515,2]
[404615517,1770330638979,-18014.911736,0.00026,30]
[404615518,1770330638989,-1722.424113,0.00026056,2]
[404615519,1770330639000,-335.20014318,0.0002692,2]
[404615520,1770330639015,-208.08058082,0.000279,2]
[404615521,1770330639024,-509.12757,0.00027923,2]
[404615522,1770330639034,-660.5321089,0.00029388,2]
[404615523,1770330639043,-660.5321089,0.00029685,2]
[404615524,1770330639052,-528.42568712,0.00029833,10]
[404615525,1770330639061,-603.36025772,0.00029928,2]
[404615526,1770330639071,-176.970311,0.00030257,60]
[404615527,1770330639081,-528.42568712,0.00030788,10]
[404615528,1770330639091,-528.42568712,0.00031743,10]
[404615529,1770330639101,-916.429626,0.00031934,2]
[404615530,1770330639111,-528.42568712,0.00032698,10]
[404615531,1770330639121,-1000.0,0.0003289,30]
[404615532,1770330639130,-1072.64045817,0.00032937,2]
[404615533,1770330639140,-178.10129618,0.000332,117]
[404615534,1770330639149,-2758.61,0.0003333,10]
[404615535,1770330639158,-279.73541243,0.0003334,2]
[404615536,1770330639167,-10000.0,0.0003334,2]
[404615537,1770330639176,-185.134,0.00033652,36]
[404615538,1770330639185,-528.42568712,0.00033652,27]
[404615539,1770330639194,-870.9000236,0.00033739,2]
[404615540,1770330639203,-528.42568712,0.00034607,30]
[404615541,1770330639212,-528.42568712,0.00035562,30]
[404615542,1770330639221,-1676.00071589,0.00035945,2]
[404615543,1770330639231,-1629.208224,0.00035945,2]
[404615544,1770330639240,-525.44144191,0.00036128,15]
[404615545,1770330639249,-741.26793723,0.00036129,7]
[404615546,1770330639264,-9999.999999,0.0003613,2]
[404615547,1770330639274,-2000.0,0.00036823,2]
[404615548,1770330639283,-2000.0,0.00036823,2]
[404615549,1770330639292,-2000.0,0.00036823,2]
[404615551,1770330639302,-2000.0,0.00036823,2]
[404615553,1770330639311,-2000.0,0.00036823,2]
[404615554,1770330639320,-2000.0,0.00036823,2]
[404615555,1770330639330,-2000.0,0.00036823,2]
[404615556,1770330639339,-2000.0,0.00036823,2]
[404615557,1770330639348,-2000.0,0.00036823,2]
[404615558,1770330639358,-2000.0,0.00036823,2]
[404615559,1770330639367,-2000.0,0.00036823,2]
[404615560,1770330639376,-2000.0,0.00036823,2]
[404615561,1770330639386,-2000.0,0.00036823,2]
[404615562,1770330639396,-2000.0,0.00036823,2]
[404615563,1770330639405,-2000.0,0.00036823,2]
[404615564,1770330639415,-150.25,0.00036922,60]
[404615565,1770330639424,-154.12044577,0.0003694,60]
[404615566,1770330639434,-160.59,0.00036941,60]
[404615567,1770330639444,-150.25,0.00037022,60]
[404615568,1770330639453,-160.59,0.00037041,60]
[404615569,1770330639465,-150.25,0.00037122,60]
[404615570,1770330639474,-160.59,0.00037141,60]
[404615571,1770330639483,-250.0,0.0003721,2]
[404615572,1770330639496,-500.0,0.0003721,2]
[404615575,1770330639510,-250.0,0.0003721,2]
[404615577,1770330639520,-500.0,0.0003721,2]
[404615578,1770330639529,-201.93286099,0.0003721,2]
[404615580,1770330639539,-209.40437684,0.0003721,2]
[404615581,1770330639550,-217.15233878,0.0003721,2]
[404615582,1770330639560,-225.18697532,0.0003721,2]
[404615583,1770330639569,-233.51889341,0.0003721,2]
[404615584,1770330639579,-242.15909246,0.0003721,2]
[404615585,1770330639589,-251.11897888,0.0003721,2]
[404615586,1770330639599,-260.4103811,0.0003721,2]
[404615587,1770330639610,-270.0455652,0.0003721,2]
[404615588,1770330639621,-280.03725112,0.0003721,2]
[404615589,1770330639632,-290.39862941,0.0003721,2]
[404615590,1770330639642,-301.1433787,0.0003721,2]
[404615591,1770330639652,-150.25,0.00037222,60]
[404615592,1770330639662,-220.26,0.00037223,3]
[404615593,1770330639672,-200.0,0.00037228,2]
[404615594,1770330639681,-160.5956,0.00037241,60]
[404615595,1770330639691,-531.86793986,0.00037288,120]
[404615596,1770330639701,-150.25,0.00037322,60]
[404615597,1770330639711,-150.25118687,0.00037422,60]
[404615598,1770330639720,-1076.99408314,0.0003748,3]
[404615599,1770330639730,-5000.0,0.000375,60]
[404615601,1770330639739,-224.45162,0.000376,60]
[404615602,1770330639748,-201.232487,0.00037679,60]
[404615604,1770330639764,-218.646836,0.00037696,60]
[404615606,1770330639774,-218.646837,0.00037696,60]
[404615608,1770330639784,-154.79422,0.00037696,60]
[404615625,1770330639923,-220.581764,0.00037696,60]
[404615627,1770330639934,-168.0,0.00037947,2]
[404615629,1770330639943,-168.0,0.00038101,2]
[404615631,1770330639951,-800.0,0.00038356,30]
[404615633,1770330639961,-347.03073647,0.00038445,5]
[404615635,1770330639970,-287.50733365,0.00038445,5]
[404615636,1770330639979,-815.90021548,0.0003858,10]
[404615639,1770330639989,-151.0,0.000387,20]
[404615640,1770330639999,-3126.45720454,0.000389,3]
[404615643,1770330640015,-151.0,0.000389,14]
[404615644,1770330640024,-750.839588,0.00039,120]
[404615646,1770330640033,-370.0,0.00039049,7]
[404615648,1770330640042,-528.42568712,0.00039118,30]
[404615650,1770330640052,-5592.22039278,0.000392,2]
[404615653,1770330640064,-151.0,0.000392,18]
[404615654,1770330640073,-163460.86794895,0.00039283,2]
[404615657,1770330640083,-168.0,0.00039322,2]
[404615658,1770330640092,-2000.0,0.00039334,7]
[404615660,1770330640102,-370.0,0.00039335,7]
[404615663,1770330640111,-151.0,0.000394,11]
[404615664,1770330640120,-168.0,0.00039416,2]
[404615667,1770330640129,-800.0,0.00039448,7]
[404615668,1770330640139,-800.0,0.0003948,7]
[404615671,1770330640148,-19801.90049182,0.0003956,2]
[404615672,1770330640157,-800.0,0.00039568,7]
[404615674,1770330640166,-370.0,0.00039579,2]
[404615677,1770330640177,-178.10129618,0.0003958,120]
[404615679,1770330640186,-800.0,0.00039582,7]
[404615681,1770330640196,-1308.60674436,0.000396,30]
[404615683,1770330640204,-1308.60674434,0.000396,30]
[404615684,1770330640214,-1308.60674434,0.000396,30]
[404615686,1770330640223,-1308.60674434,0.000396,30]